bitfinex-derivatives/quotes_ETHF0:USTF0_20251211
["timestamp","ask_amount","ask_price","bid_price","bid_amount"]
[1765422243948,1.64674076,3190.3,3190.1,3.0]
[1765422244140,3.38935434,3190.4,3190.1,3.0]
[1765422244346,6.0,3190.3,3189.1,0.00315474]
[1765422244544,1.63723688,3189.6,3189.1,0.00315474]
[1765422244752,1.63723688,3189.4,3189.1,0.00315474]
[1765422245051,0.00279319,3190.3,3189.6,1.3172]
[1765422245251,0.00279319,3190.3,3189.8,0.15671]
[1765422245446,0.00279319,3190.3,3189.6,1.3172]
[1765422245639,0.00470146,3190.5,3189.9,1.75078961]
[1765422245843,2.66164828,3191.3,3189.6,1.3172]
[1765422245844,2.66164828,3191.3,3189.7,0.02948084]
[1765422246048,0.95718149,3191.2,3190.1,0.1567]
[1765422246248,0.95718149,3191.1,3190.1,0.1567]
[1765422246450,0.95718149,3191.0,3190.1,0.1567]
[1765422246744,0.95718149,3190.9,3189.1,0.00315474]
[1765422246945,0.00470146,3190.3,3189.6,1.3172]
[1765422247145,0.00304308,3191.0,3190.2,1.60341312]
[1765422247447,0.95644912,3190.9,3190.1,0.1567]
[1765422247647,0.95644912,3190.8,3190.1,0.1567]
[1765422247851,0.95644912,3190.7,3190.1,0.1567]
[1765422248051,0.95644912,3190.6,3190.2,0.15669]
[1765422248253,0.00470146,3190.7,3190.2,0.15669]
[1765422248449,0.95659312,3190.6,3190.2,0.15669]
[1765422248644,0.95659312,3190.5,3190.2,0.15669]
[1765422248850,0.95659312,3190.4,3190.2,0.15669]
[1765422249052,0.00470146,3190.7,3190.3,1.66235817]
[1765422249255,0.95650409,3190.6,3190.3,1.66235817]
[1765422249553,0.95650409,3190.5,3190.3,1.66235817]
[1765422249753,0.00470146,3190.7,3190.3,1.66235817]
[1765422249950,0.95661144,3190.6,3190.5,0.15668]
[1765422250149,0.00470146,3190.7,3190.5,0.15668]
[1765422250557,0.95710504,3190.6,3190.5,0.15668]
[1765422250752,0.00470146,3190.7,3189.6,1.47393]
[1765422251054,0.95723809,3190.6,3189.9,0.15671]
[1765422251256,0.00470146,3190.7,3189.9,0.15671]
[1765422251257,0.95723809,3190.5,3189.9,0.15671]
[1765422251444,0.95723809,3190.5,3189.6,1.3172]
[1765422251445,0.95723809,3190.4,3188.5,40.8]
[1765422251754,0.95723809,3190.3,3188.8,0.0030403]
[1765422251952,2.18298251,3189.9,3188.8,0.0030403]
[1765422252146,0.95723809,3189.8,3189.1,0.15675]
[1765422252349,0.95723809,3189.7,3189.1,0.15675]
[1765422252652,0.95723809,3189.6,3188.8,0.0030403]
[1765422252853,1.1709,3190.4,3189.3,0.15674]
[1765422253050,3.12545446,3190.3,3189.1,0.00470146]
[1765422253251,0.94247195,3190.2,3189.1,0.00470146]
[1765422253558,0.94247195,3190.1,3189.1,0.00470146]
[1765422253859,0.94247195,3190.0,3189.1,0.00470146]
[1765422254150,0.94247195,3189.9,3189.1,0.00470146]
[1765422254455,3.35388251,3190.4,3189.1,0.00470146]
[1765422254456,0.94247195,3189.8,3189.1,0.00470146]
[1765422254658,1.1264,3189.6,3188.0,0.1568]
[1765422254958,0.94247195,3189.5,3188.0,0.1568]
[1765422255254,0.94247195,3189.4,3188.7,1.97968286]
[1765422255559,0.94247195,3189.3,3188.7,1.97968286]
[1765422255760,0.94247195,3189.2,3188.7,1.98782137]
[1765422256059,0.94247195,3189.1,3188.7,1.98782137]
[1765422256258,0.94247195,3189.0,3188.9,0.81238286]
[1765422256854,0.00470146,3189.3,3188.9,0.81238286]
[1765422256855,0.00470146,3189.3,3188.9,3.04432343]
[1765422257048,0.93958519,3190.3,3189.6,1.2451]
[1765422257352,0.93958519,3190.2,3189.9,0.81238286]
[1765422257555,0.00304308,3191.0,3189.9,0.81238286]
[1765422257750,0.00304308,3191.0,3190.2,0.15669]
[1765422258253,2.66164828,3192.2,3190.8,0.15667]
[1765422258953,2.18298251,3192.1,3190.6,0.81238286]
[1765422259257,0.9333,3191.4,3191.0,0.00470146]
[1765422259457,0.9333,3191.4,3190.1,0.1567]
[1765422260054,4.84463079,3191.5,3190.1,0.1567]
[1765422260256,2.18298251,3191.5,3190.2,1.54447545]
[1765422260456,0.00470146,3191.7,3190.6,0.15668]
[1765422261359,2.18298251,3191.6,3190.6,0.15668]
[1765422261762,2.18768397,3191.7,3190.6,0.15668]
[1765422262059,2.18298251,3191.6,3190.5,0.00470146]
[1765422262362,2.18298251,3191.4,3190.5,0.00470146]
[1765422262561,2.18298251,3191.2,3190.5,0.00470146]
[1765422262859,1.89042107,3190.9,3190.5,0.00470146]
[1765422263357,4.07340358,3190.9,3190.5,0.00470146]
[1765422264355,1.89042107,3190.9,3188.9,0.15676]
[1765422264559,2.18383035,3190.3,3188.9,0.15676]
[1765422264758,2.18383035,3190.3,3189.0,1.79501156]
[1765422264958,1.63819148,3190.0,3189.1,0.15675]
[1765422265362,0.00470146,3189.9,3189.2,0.1909397]
[1765422265661,0.00470146,3189.9,3189.6,1.2451]
[1765422266157,1.63819148,3190.5,3189.9,0.15671]
[1765422266364,1.63819148,3190.3,3189.9,0.15671]
[1765422266860,1.63819148,3190.5,3190.4,1.2451]
[1765422267264,2.18383035,3190.7,3189.6,1.2451]
[1765422267450,2.19059935,3190.0,3189.2,0.00470146]
[1765422267660,1.64279229,3189.6,3189.2,0.00470146]
[1765422267850,1.64279229,3189.5,3189.2,0.00470146]
[1765422268158,2.19059935,3189.5,3189.2,0.00470146]
[1765422268361,2.19059935,3189.3,3189.2,0.00470146]
[1765422268660,8.94414474,3189.6,3188.0,1.3172]
[1765422268859,1.64335952,3188.2,3188.0,1.3172]
[1765422269456,1.64335952,3188.3,3188.0,1.3172]
[1765422269653,0.94171363,3188.2,3188.0,1.32125522]
[1765422269850,1.64335952,3188.3,3188.0,1.32125522]
[1765422269851,1.58637459,3188.3,3188.1,2.31124186]
[1765422270054,0.00470146,3188.5,3188.1,2.31124186]
[1765422270257,0.00470146,3188.5,3188.2,0.15679]
[1765422270552,0.00470146,3188.5,3188.1,2.31124186]
[1765422270553,1.46e-06,3188.5,3188.1,2.31124186]
[1765422271059,1.46e-06,3188.5,3188.4,0.15679]
[1765422271559,0.00352367,3189.6,3189.1,0.15675]
[1765422271860,0.00352367,3189.6,3188.8,1.2658]
[1765422271861,2.19114603,3190.6,3189.4,0.15674]
[1765422272265,1.228,3190.4,3189.2,1.95719433]
[1765422272560,0.00470146,3190.1,3189.5,0.00470146]
[1765422273063,0.00835053,3190.1,3189.5,0.00470146]
[1765422274058,2.19114603,3190.0,3189.5,0.00470146]
[1765422274263,0.00835053,3190.1,3189.5,0.00470146]
[1765422274467,0.00835053,3190.1,3189.6,1.83923768]
[1765422274758,2.19114603,3190.0,3189.5,0.00470146]
[1765422274956,2.19114603,3189.7,3188.2,0.15679]
[1765422275162,3.37284603,3189.6,3188.2,0.15679]
[1765422275364,3.37284603,3189.6,3188.2,2.20247123]
[1765422275558,3.37284603,3189.6,3188.4,0.15678]
[1765422276064,3.37284603,3189.6,3188.7,0.00470146]
[1765422276473,2.19114603,3189.8,3188.9,0.15676]
[1765422276660,1.64408809,3189.8,3188.9,0.15676]
[1765422280478,0.00835053,3190.1,3189.2,0.15675]
[1765422280962,0.00835053,3190.1,3189.3,1.85397741]
[1765422281357,1.64408809,3189.9,3188.8,1.2658]
[1765422281555,0.00835053,3190.1,3188.8,1.2658]
[1765422281556,0.00835053,3190.1,3189.1,0.15675]
[1765422281868,1.64408809,3190.0,3188.9,1.85398064]
[1765422282062,0.90730292,3189.9,3188.8,1.2658]
[1765422282270,0.90730292,3189.8,3188.8,1.2658]
[1765422282464,0.90730292,3189.7,3188.8,1.2658]
[1765422282769,0.90730292,3189.6,3188.8,1.2658]
[1765422282966,0.90730292,3189.5,3188.9,1.98668811]
[1765422283168,1.64408809,3190.0,3188.9,1.98668811]
[1765422283369,0.90686604,3189.9,3188.9,1.98668811]
[1765422283568,0.90686604,3189.8,3188.9,1.98668811]
[1765422283870,0.90686604,3189.7,3188.9,1.98668811]
[1765422284072,0.90686604,3189.6,3188.8,1.2658]
[1765422284368,0.00835053,3190.1,3189.9,1.2658]
[1765422285172,0.00835053,3190.1,3189.9,1.42251]
[1765422285372,0.00835053,3190.1,3190.0,1.9222398]
[1765422285574,0.90624792,3191.1,3190.6,1.2658]
[1765422285767,1.64408809,3192.2,3190.6,1.2658]
[1765422285972,0.90649084,3192.1,3190.6,1.2658]
[1765422286169,0.90649084,3192.0,3190.7,1.35297906]
[1765422286363,1.64408809,3192.4,3190.7,1.35297906]
[1765422286565,0.00470146,3191.9,3191.2,0.00470146]
[1765422286775,0.00470146,3191.9,3191.6,0.15663]
[1765422287167,0.00237464,3192.4,3192.0,1.2658]
[1765422287472,1.64408809,3193.9,3192.4,0.15659]
[1765422287869,1.64408809,3193.9,3192.0,1.2658]
[1765422287870,1.64408809,3193.9,3192.5,0.99437936]
[1765422288067,1.64408809,3194.4,3192.6,0.15658]
[1765422288270,0.00470146,3193.5,3192.9,0.00470146]
[1765422288474,0.00727397,3193.5,3192.9,0.00470146]
[1765422288773,1.64408809,3193.4,3192.9,0.00470146]
[1765422288972,6.434,3193.3,3190.7,0.00404896]
[1765422289174,1.64408809,3191.4,3190.7,0.00404896]
[1765422289476,1.64408809,3191.8,3190.7,0.00404896]
[1765422289976,0.00470146,3191.6,3190.9,0.00470146]
[1765422290772,0.00470146,3191.6,3191.2,1.2658]
[1765422291369,0.00470146,3191.6,3191.3,1.35297906]
[1765422291570,0.00470146,3191.6,3190.9,0.00470146]
[1765422292377,0.00470146,3191.6,3191.0,1.39716361]
[1765422292573,0.00470146,3191.6,3190.9,0.00470146]
[1765422296076,0.00470146,3191.6,3191.0,1.39716361]
[1765422297170,0.00470146,3191.6,3191.4,0.15664]
[1765422298371,0.00470146,3191.6,3191.2,1.2658]
[1765422298372,0.00470146,3191.6,3191.5,0.15663]
[1765422298678,1.64408809,3192.8,3191.5,1.480155]
[1765422298875,1.64408809,3193.3,3192.0,1.41341]
[1765422299177,1.64408809,3192.1,3191.6,1.10266453]
[1765422299474,0.00470146,3192.2,3191.3,0.1177858]
[1765422299774,0.00470146,3192.2,3192.0,1.2568]
[1765422300175,0.00470146,3192.2,3192.1,0.999606]
[1765422300676,0.00470146,3192.2,3191.2,1.2658]
[1765422300677,0.00470146,3192.2,3191.2,1.42245]
[1765422301079,0.00470146,3192.2,3192.0,1.2568]
[1765422301276,0.00470146,3192.2,3192.1,0.1566]
[1765422301880,3.12,3194.6,3192.1,0.1566]
[1765422301881,1.64408809,3193.6,3192.6,0.15658]
[1765422302179,1.64408809,3194.1,3192.8,1.41337]
[1765422302378,1.64408809,3194.1,3192.8,1.2568]
[1765422302577,2.162,3194.4,3192.0,1.2568]
[1765422302578,1.64408809,3192.9,3192.0,1.2568]
[1765422302780,0.00470146,3192.8,3192.1,0.00470146]
[1765422302975,1.10460146,3192.8,3192.1,0.00470146]
[1765422303376,1.64408809,3192.4,3190.6,1.2658]
[1765422303577,1.64408809,3191.5,3190.6,1.2658]
[1765422303786,1.64408809,3191.5,3189.8,10.896]
[1765422303787,1.64408809,3191.5,3190.4,0.15669]
[1765422304087,1.64408809,3192.0,3190.8,1.59802232]
[1765422304275,1.64408809,3192.0,3191.1,0.00470146]
[1765422304790,1.64408809,3192.7,3191.2,1.2568]
[1765422305379,1.64408809,3192.7,3191.3,1.19100457]
[1765422305884,1.10460146,3192.8,3191.3,1.19100457]
[1765422306192,1.64408809,3191.6,3189.9,0.15671]
[1765422306583,1.64408809,3191.6,3190.0,0.15671]
[1765422306882,1.64408809,3191.7,3189.0,1.89157152]
[1765422307082,1.64408809,3191.7,3190.9,0.00470146]
[1765422308880,1.64408809,3192.2,3190.9,0.00470146]
[1765422309083,1.64408809,3192.2,3191.0,0.15666]
[1765422309286,1.64408809,3192.7,3191.2,1.2568]
[1765422309984,1.64408809,3192.7,3191.3,1.34764457]
[1765422310580,1.64408809,3192.2,3191.3,1.34764457]
[1765422311286,1.21957146,3192.8,3190.9,0.00470146]
[1765422311488,1.64408809,3192.2,3190.9,0.00470146]
[1765422311785,1.64408809,3191.7,3191.0,1.30879866]
[1765422311991,1.64408809,3191.2,3190.9,0.00470146]
[1765422312195,8.93938663,3191.2,3189.6,1.2568]
[1765422312392,1.64408809,3189.9,3188.8,1.2568]
[1765422312690,1.64408809,3189.9,3188.9,1.7655298]
[1765422312894,1.64408809,3189.4,3188.9,1.7655298]
[1765422313091,1.64408809,3189.4,3188.9,0.00236701]
[1765422313286,0.00470146,3189.5,3188.9,0.00236701]
[1765422313893,1.64408809,3189.4,3187.4,0.15683]
[1765422314085,1.64408809,3188.9,3187.4,0.15683]
[1765422314894,1.64408809,3188.9,3187.8,0.00470146]
[1765422314895,1.64691605,3188.9,3187.8,0.00470146]
[1765422316182,0.00282796,3188.9,3187.8,0.00470146]
[1765422316391,0.00282796,3188.9,3188.0,1.209]
[1765422316591,1.64691605,3188.9,3187.9,3.53998795]
[1765422316892,1.64691605,3188.9,3187.8,0.00470146]
[1765422317089,1.64691605,3188.9,3188.0,2.23745998]
[1765422317390,1.64691605,3188.9,3187.8,0.00470146]
[1765422317999,1.64691605,3188.9,3188.0,1.209]
[1765422318190,1.64691605,3188.9,3187.8,0.00470146]
[1765422318498,0.00282796,3188.9,3188.1,2.22270499]
[1765422318788,0.00282796,3188.9,3187.8,0.00470146]
[1765422319193,0.00282796,3188.9,3187.9,2.25221543]
[1765422319695,0.00282796,3188.9,3188.0,1.209]
[1765422320497,0.00282796,3188.9,3188.1,2.22270499]
[1765422321389,0.00282796,3188.9,3188.3,0.15679]
[1765422321595,0.00282796,3188.9,3188.1,2.22270499]
[1765422321991,0.00282796,3188.9,3188.0,1.209]
[1765422322394,1.64408809,3188.5,3187.8,0.00470146]
[1765422324795,0.00282796,3188.9,3188.0,1.209]
[1765422325494,0.00282796,3188.9,3187.9,0.15681]
[1765422325799,1.64408809,3188.4,3187.9,0.15681]
[1765422326001,1.64408809,3188.7,3187.9,0.15681]
[1765422326194,1.64408809,3188.7,3187.8,0.00470146]
[1765422326401,1.64408809,3188.2,3187.8,0.00470146]
[1765422327295,1.64408809,3188.2,3186.4,1.2568]
[1765422327296,1.1476,3188.0,3186.4,1.2568]
[1765422327496,1.1476,3188.8,3186.8,0.15686]
[1765422327693,1.64408809,3188.3,3186.5,2.56218683]
[1765422328100,1.64408809,3188.3,3186.5,6.00108035]
[1765422328295,0.00470146,3187.7,3187.2,0.15684]
[1765422328490,1.64408809,3188.3,3187.6,0.15682]
[1765422328691,1.64408809,3188.8,3187.8,0.15681]
[1765422328895,1.64408809,3188.8,3188.0,1.2275]
[1765422329198,0.00282796,3188.9,3188.3,0.15679]
[1765422329602,0.00752942,3188.9,3188.5,1.0707]
[1765422330797,0.00752942,3188.9,3186.9,0.15686]
[1765422330798,1.0883,3188.5,3186.9,0.15686]
[1765422331097,1.65161751,3188.9,3187.8,1.0707]
[1765422331403,1.64408809,3188.4,3187.8,1.0707]
[1765422331707,1.65161751,3188.9,3187.8,1.0707]
[1765422331894,0.00752942,3188.9,3187.9,2.32599963]
[1765422332092,0.00752942,3188.9,3188.0,0.1568]
[1765422332592,0.00752942,3188.9,3188.3,0.15679]
[1765422332793,1.64408809,3188.6,3187.8,1.0707]
[1765422333404,1.64408809,3188.1,3187.1,1.0707]
[1765422333702,1.64408809,3188.1,3186.5,0.00341754]
[1765422333703,2.56488809,3187.2,3186.5,0.00341754]
[1765422333898,1.64878955,3187.2,3186.5,0.00341754]
[1765422334801,1.64408809,3187.0,3186.5,0.00341754]
[1765422335197,1.64408809,3187.0,3185.6,1.30254966]
[1765422335401,1.64408809,3186.4,3185.6,1.30254966]
[1765422336202,0.00329594,3186.4,3185.7,2.94624401]
[1765422336704,0.00470146,3187.2,3185.6,1.30619236]
[1765422336909,0.00470146,3187.2,3185.6,1.46311236]
[1765422337103,0.00470146,3187.2,3185.7,2.93146679]
[1765422337603,0.00734208,3187.2,3185.7,2.93146679]
[1765422337803,1.65143017,3187.2,3185.7,2.93146679]
[1765422338003,0.00734208,3187.2,3186.1,0.15689]
[1765422338308,0.00734208,3187.2,3186.4,1.0707]
[1765422338503,0.00734208,3187.2,3186.6,0.15687]
[1765422338712,2.96616142,3188.8,3186.4,1.0707]
[1765422338898,1.0732,3188.8,3187.2,1.0707]
[1765422339410,2.96616142,3188.8,3187.3,2.48281739]
[1765422339803,0.00470146,3188.4,3187.7,0.00470146]
[1765422340003,1.89296142,3188.2,3187.7,0.00470146]
[1765422340303,0.9993,3188.0,3186.5,0.15688]
[1765422340500,0.90372457,3187.9,3186.5,0.15688]
[1765422340902,0.90372457,3187.9,3186.6,2.57695247]
[1765422341102,0.90372457,3187.8,3186.6,2.73382247]
[1765422341300,0.90372457,3187.7,3186.6,2.73382247]
[1765422341500,1.89296142,3188.2,3186.6,2.73382247]
[1765422341704,0.9070234,3188.1,3186.8,0.15686]
[1765422342101,0.9070234,3188.0,3186.8,0.15686]
[1765422342308,0.9070234,3187.9,3186.8,0.15686]
[1765422342508,0.9070234,3187.8,3186.4,1.0707]
[1765422342811,0.9070234,3187.7,3186.6,0.15687]
[1765422343010,0.9070234,3187.6,3186.6,0.15687]
[1765422343212,0.9070234,3187.5,3186.6,0.15687]
[1765422343406,3.52910041,3188.2,3186.7,0.01476703]
[1765422343607,0.91228475,3188.1,3186.7,0.01476703]
[1765422343812,3.52910041,3188.2,3186.7,0.01476703]
[1765422343813,0.91228475,3188.0,3186.7,0.17163703]
[1765422344107,0.91228475,3187.9,3186.7,0.15687]
[1765422344412,0.91228475,3187.8,3186.8,0.02953175]
[1765422344606,0.91228475,3187.7,3186.8,0.02953175]
[1765422344806,0.91228475,3187.6,3186.8,0.02953175]
[1765422345006,0.91228475,3187.5,3186.8,0.02953175]
[1765422345205,3.52910041,3188.2,3186.8,0.02953175]
[1765422345206,3.52910041,3188.2,3186.8,0.18639175]
[1765422345512,2.54796819,3188.1,3186.8,0.15686]
[1765422345810,1.89296142,3188.2,3186.5,2.57695338]
[1765422345811,0.9118292,3188.0,3186.5,2.57695338]
[1765422346107,0.9118292,3187.9,3187.1,1.22755]
[1765422346305,0.9118292,3187.8,3187.1,1.22755]
[1765422346505,0.9118292,3187.7,3187.1,1.22755]
[1765422346708,0.9118292,3187.6,3187.1,1.22755]
[1765422346911,0.9118292,3187.5,3187.1,1.22755]
[1765422347111,1.63613899,3188.1,3187.1,1.22755]
[1765422347314,0.91168138,3188.0,3187.1,1.22755]
[1765422347610,0.91168138,3187.9,3187.1,1.22755]
[1765422347814,0.00470146,3188.4,3187.2,2.48836559]
[1765422348018,0.91183793,3188.3,3187.2,2.48836559]
[1765422348208,0.91183793,3188.2,3187.2,2.48836559]
[1765422348408,0.91183793,3188.1,3187.2,2.48836559]
[1765422348602,0.91183793,3188.0,3187.3,0.15684]
[1765422348808,0.00470146,3188.4,3187.6,0.15682]
[1765422349002,0.91198562,3188.3,3187.7,0.15682]
[1765422349212,0.00470146,3188.4,3187.8,1.0707]
[1765422349907,0.00470146,3188.4,3186.5,40.95688]
[1765422350109,0.91196893,3188.3,3187.1,1.0707]
[1765422350321,0.91196893,3188.2,3187.2,2.42931694]
[1765422350502,0.00470146,3188.4,3187.1,1.0707]
[1765422350503,0.91196893,3188.1,3187.4,0.15683]
[1765422350710,0.00470146,3188.4,3187.8,1.22751]
[1765422350913,0.91222839,3188.3,3187.8,1.22751]
[1765422351112,0.00470146,3188.4,3187.8,1.22751]
[1765422351315,0.00470146,3188.4,3187.8,1.0707]
[1765422351508,0.00470146,3188.4,3188.2,0.15679]
[1765422351814,0.00470146,3188.4,3188.2,0.15927167]
[1765422352110,0.00237094,3188.8,3188.5,1.0707]
[1765422356412,0.00237094,3188.8,3187.1,1.0707]
[1765422356413,0.15681,3187.9,3186.4,1.0707]
[1765422356612,5.38,3188.4,3186.5,0.15688]
[1765422356815,0.91173825,3188.3,3186.8,2.42931694]
[1765422357015,0.91173825,3188.2,3186.5,0.15688]
[1765422357320,7.01613899,3188.4,3186.5,0.15688]
[1765422357321,2.54787724,3188.1,3186.7,2.5178927]
[1765422357521,5.20398745,3188.5,3186.7,2.5178927]
[1765422357522,0.91173825,3188.0,3186.7,2.52107541]
[1765422357722,0.91173825,3187.9,3186.7,0.00318271]
[1765422357918,0.91173825,3187.8,3186.8,0.01476472]
[1765422358123,0.91173825,3187.7,3186.7,0.00318271]
[1765422358325,4.64898041,3188.5,3186.7,0.00318271]
[1765422358521,2.54772589,3188.4,3186.7,0.00318271]
[1765422358721,0.9115869,3188.3,3186.8,2.47360273]
[1765422358921,0.9115869,3188.2,3186.8,2.47360273]
[1765422359226,0.9115869,3188.1,3186.8,2.47360273]
[1765422359524,0.9115869,3188.0,3186.8,2.47360273]
[1765422359827,0.9115869,3187.9,3186.8,2.47360273]
[1765422360021,3.01284142,3188.5,3186.8,2.47360273]
[1765422360215,0.91161434,3188.4,3186.8,2.47360273]
[1765422360822,1.89296142,3187.9,3186.7,0.00318271]
[1765422361123,0.91205961,3187.8,3186.7,0.00318271]
[1765422361520,1.89296142,3187.9,3186.7,0.00318271]
[1765422361722,1.89296142,3187.9,3186.8,2.57695247]
[1765422362528,2.85606142,3188.5,3186.8,2.57695247]
[1765422362825,0.00237094,3188.8,3188.5,0.9716]
[1765422363429,0.00237094,3188.8,3188.0,0.1568]
[1765422363834,0.00237094,3188.8,3188.1,2.23745998]
[1765422364036,0.00237094,3188.8,3188.5,0.9716]
[1765422364628,1.89296142,3190.2,3189.0,0.15675]
[1765422364937,1.89296142,3190.8,3189.2,1.12835]
[1765422365433,0.15664,3191.4,3189.2,1.12835]
[1765422365642,0.00470146,3190.6,3189.9,0.00470146]
[1765422367132,0.00470146,3190.6,3190.4,0.9716]
[1765422368136,0.00328846,3191.3,3190.5,1.61814869]
[1765422368740,0.00328846,3191.3,3191.2,0.9716]
[1765422369038,0.00328846,3191.3,3190.4,0.9716]
[1765422369337,0.00328846,3191.3,3189.9,0.00470146]
[1765422369338,1.89296142,3191.1,3189.9,0.00470146]
[1765422369538,0.8331,3191.2,3189.9,0.00470146]
[1765422369836,0.00328846,3191.3,3190.0,1.61814869]
[1765422370035,0.00328846,3191.3,3190.0,5.22778242]
[1765422370239,0.00328846,3191.3,3191.2,0.9716]
[1765422370736,0.00328846,3191.3,3190.4,0.9716]
[1765422371141,0.00328846,3191.3,3190.5,1.51500939]
[1765422372140,0.00328846,3191.3,3191.2,0.9716]
[1765422373445,0.00470146,3191.6,3191.2,2.36876361]
[1765422373739,1.00534,3193.4,3191.5,0.15663]
[1765422373945,0.8488,3193.4,3191.6,0.15663]
[1765422374237,1.89296142,3193.7,3191.6,0.15663]
[1765422374238,1.89296142,3193.7,3191.8,0.15662]
[1765422374449,1.8964551,3193.7,3191.8,0.15978905]
[1765422374742,0.00470146,3193.1,3192.4,0.00470146]
[1765422375643,1.89296142,3193.0,3192.4,0.00470146]
[1765422376234,0.95877,3192.8,3191.8,0.00316905]
[1765422376443,1.89296142,3192.4,3191.8,0.00316905]
[1765422376836,0.95877,3192.8,3191.8,0.00316905]
[1765422377039,1.89296142,3192.5,3191.8,0.00316905]
[1765422377238,1.89296142,3192.5,3191.8,0.00787051]
[1765422377937,1.89296142,3191.9,3190.4,0.9716]
[1765422378343,1.89296142,3191.3,3190.6,1.323525]
[1765422378543,1.89296142,3191.3,3189.0,0.15675]
[1765422378737,1.89296142,3191.3,3189.1,0.15675]
[1765422378948,0.00470146,3190.8,3190.1,0.00470146]
[1765422380537,0.00470146,3190.8,3190.4,0.9691]
[1765422380741,3.853,3192.7,3191.2,0.9691]
[1765422380941,0.8022,3192.8,3191.2,0.9691]
[1765422381136,2.04951142,3193.2,3191.3,1.19100457]
[1765422381137,0.93296233,3193.1,3191.3,1.19100457]
[1765422381343,1.89296142,3193.8,3191.7,0.15662]
[1765422381648,0.00470146,3193.1,3192.4,0.00470146]
[1765422381846,0.00735161,3193.1,3192.4,0.00710256]
[1765422382251,0.00735161,3193.1,3192.5,0.95550493]
[1765422382459,1.89296142,3192.9,3191.4,40.8]
[1765422382748,0.00735161,3193.1,3191.5,0.30380344]
[1765422382947,0.00735161,3193.1,3191.5,3.7231087]
[1765422383147,0.00735161,3193.1,3191.5,0.15663]
[1765422383350,0.00735161,3193.1,3191.6,0.07357173]
[1765422383541,0.00735161,3193.1,3192.0,0.97380146]
[1765422384254,0.00735161,3193.1,3192.1,0.01470051]
[1765422385541,0.00735161,3193.1,3192.8,0.9691]
[1765422386357,0.93002019,3194.3,3192.8,0.9691]
[1765422386646,1.89296142,3193.8,3192.0,0.97380146]
[1765422386854,0.8956,3193.6,3192.0,0.97380146]
[1765422387244,0.00470146,3193.1,3192.0,0.97380146]
[1765422387753,0.00470146,3193.1,3192.1,0.05886385]
[1765422388153,0.00470146,3193.1,3192.8,0.9691]
[1765422390045,0.00470146,3193.1,3192.0,0.97380146]
[1765422390443,0.00470146,3193.1,3192.1,0.05886385]
[1765422390649,0.00470146,3193.1,3192.7,0.9178]
[1765422392050,0.00380605,3193.6,3193.4,0.9178]
[1765422392249,0.00250504,3193.6,3193.4,0.9178]
[1765422392451,0.93507995,3194.3,3194.1,0.9178]
[1765422392648,0.93507995,3194.2,3194.1,0.9178]
[1765422392855,1.63613899,3195.1,3194.1,0.9178]
[1765422393047,2.19114603,3195.5,3194.8,0.9178]
[1765422393048,0.00470146,3194.9,3194.8,0.9178]
[1765422393356,0.93997499,3194.9,3194.8,0.9178]
[1765422393659,1.63613899,3195.8,3194.8,0.92186125]
[1765422393861,0.93528823,3195.7,3194.8,0.92186125]
[1765422394059,0.93528823,3195.6,3194.8,0.92186125]
[1765422394255,0.93528823,3195.5,3194.8,0.92186125]
[1765422394558,0.93528823,3195.4,3194.8,0.92186125]
[1765422394750,0.93528823,3195.3,3194.8,0.92186125]
[1765422394950,0.93528823,3195.2,3194.8,0.92186125]
[1765422395151,0.93528823,3195.1,3194.8,0.00406125]
[1765422395362,0.93528823,3195.0,3194.3,0.00470146]
[1765422395557,0.93528823,3194.9,3194.3,0.00470146]
[1765422395751,0.93528823,3194.8,3194.3,0.00470146]
[1765422395951,0.93528823,3194.7,3194.3,0.00470146]
[1765422396261,0.93528823,3194.6,3194.3,0.00838382]
[1765422396457,0.93528823,3194.5,3194.3,0.00838382]
[1765422396664,0.93528823,3194.4,3194.3,0.00838382]
[1765422397261,1.63613899,3195.3,3194.3,6.00838382]
[1765422397463,0.93489935,3195.2,3194.3,0.00838382]
[1765422397662,0.93489935,3195.1,3194.3,0.00838382]
[1765422397862,0.93489935,3195.0,3194.3,0.00838382]
[1765422398161,0.93489935,3194.9,3194.3,0.00838382]
[1765422398362,0.00736333,3195.5,3195.2,0.9178]
[1765422398552,0.93450514,3195.4,3195.2,0.9178]
[1765422398751,0.93450514,3195.3,3195.2,0.9178]
[1765422399155,0.93429716,3195.3,3195.2,0.9178]
[1765422399757,0.00736333,3195.5,3195.2,0.9178]
[1765422399959,0.93476644,3195.4,3195.2,0.9178]
[1765422400153,0.93476644,3195.3,3195.2,0.9178]
[1765422400357,0.93476644,3195.3,3194.8,0.15647]
[1765422400566,0.93476644,3195.2,3194.8,0.15647]
[1765422400764,0.00736333,3195.5,3194.8,0.15647]
[1765422400765,0.93476644,3195.1,3194.8,0.15647]
[1765422401062,0.93476644,3195.1,3194.3,40.80838382]
[1765422401063,1.63613899,3196.6,3195.2,0.9178]
[1765422401257,1.63613899,3196.8,3195.2,0.9178]
[1765422401657,1.63613899,3196.9,3196.0,0.9178]
[1765422401861,1.63613899,3197.1,3196.2,0.1564]
[1765422402059,0.00469388,3197.0,3196.3,0.00469388]
[1765422402260,0.00469388,3197.0,3196.4,0.15639]
[1765422402567,1.63797532,3196.9,3196.3,0.00469388]
[1765422402869,3.27880819,3197.0,3195.8,0.15642]
[1765422403062,1.63613899,3196.8,3195.8,0.15642]
[1765422403264,2.58937532,3196.0,3194.9,0.15646]
[1765422403564,1.63613899,3195.7,3194.4,0.15649]
[1765422403968,0.00469388,3195.4,3194.7,0.00469388]
[1765422404361,0.00469388,3195.4,3194.8,0.15647]
[1765422405363,0.00469388,3195.4,3195.2,0.9178]
[1765422405569,0.00469388,3195.4,3195.3,0.15645]
[1765422407071,1.63613899,3196.6,3195.3,0.15645]
[1765422407269,1.63613899,3196.3,3194.7,0.00469388]
[1765422407465,1.63613899,3196.1,3194.7,0.00469388]
[1765422407666,0.6506,3196.0,3194.7,0.00469388]
[1765422407861,1.63613899,3195.8,3194.7,0.00469388]
[1765422408066,1.63613899,3195.4,3194.7,0.00469388]
[1765422408377,1.63613899,3195.3,3194.7,0.00469388]
[1765422409267,2.57253899,3195.2,3194.7,0.00469388]
[1765422409465,1.63613899,3195.0,3193.9,0.15652]
[1765422409671,1.63613899,3194.9,3193.9,0.15652]
[1765422410365,1.63613899,3194.8,3193.9,0.15652]
[1765422410570,1.63834998,3194.8,3194.2,0.00469388]
[1765422411072,4.50997951,3194.4,3193.1,0.15655]
[1765422411371,1.63761542,3193.5,3192.2,0.1566]
[1765422411573,0.774,3193.6,3192.2,0.1566]
[1765422411574,1.63761542,3193.3,3192.2,0.1566]
[1765422411870,1.63761542,3193.0,3191.8,0.15662]